Body Name,Body,Service Division,Expense Type,Date Paid,Transaction Ref,Invoice Amount,Supplier Name
Boston Borough Council,http://statistics.data.gov.uk/id/local-authority/32UB,Communities,Bed and Breakfast Accommodation (Homelessness Service),02/04/2024,30011457,350.00 ,Smart Move (Boston) LTD
Boston Borough Council,http://statistics.data.gov.uk/id/local-authority/32UB,Communities,Bed and Breakfast Accommodation (Homelessness Service),02/04/2024,30011458,360.00 ,Smart Move (Boston) LTD
Boston Borough Council,http://statistics.data.gov.uk/id/local-authority/32UB,Credit Control,Professional and Contractors Fees,02/04/2024,30011415,"3,905.00 ",City of Lincoln Council
Boston Borough Council,http://statistics.data.gov.uk/id/local-authority/32UB,Finance,Postages,02/04/2024,30011635,389.95 ,imail
Boston Borough Council,http://statistics.data.gov.uk/id/local-authority/32UB,Operations,Fuel and Oil,02/04/2024,30011631,220.36 ,Fuelcard Services Ltd
Boston Borough Council,http://statistics.data.gov.uk/id/local-authority/32UB,Operations,Fuel and Oil,02/04/2024,30011632,"5,911.03 ",Fuelcard Services Ltd
Boston Borough Council,http://statistics.data.gov.uk/id/local-authority/32UB,Planning,Professional and Contractors Fees,02/04/2024,30011405,481.50 ,Thomson Environmental Consultants Ltd
Boston Borough Council,http://statistics.data.gov.uk/id/local-authority/32UB,Communities,Subscriptions to Organisations and Other Bodies,04/04/2024,30011422,"4,010.00 ",Lincolnshire County Council
Boston Borough Council,http://statistics.data.gov.uk/id/local-authority/32UB,Corporate,Purchase of Hardware,04/04/2024,30011541,"33,750.00 ",Dell Incorporated
Boston Borough Council,http://statistics.data.gov.uk/id/local-authority/32UB,Finance,PSPS Non-Base Contract Costs,04/04/2024,30011435,"14,123.54 ",Public Sector Partnership Services LTD
Boston Borough Council,http://statistics.data.gov.uk/id/local-authority/32UB,Finance,PSPS Non-Base Contract Costs,04/04/2024,30011436,"13,630.00 ",Public Sector Partnership Services LTD
Boston Borough Council,http://statistics.data.gov.uk/id/local-authority/32UB,Heritage,Subscriptions to Organisations and Other Bodies,04/04/2024,30011439,"1,199.00 ",Hitched Ltd
Boston Borough Council,http://statistics.data.gov.uk/id/local-authority/32UB,Information Technology,Computer Hardware Purchase,04/04/2024,30011540,"10,000.00 ",Dell Incorporated
Boston Borough Council,http://statistics.data.gov.uk/id/local-authority/32UB,Information Technology,Purchase of Hardware,04/04/2024,30011541,"33,750.00 ",Dell Incorporated
Boston Borough Council,http://statistics.data.gov.uk/id/local-authority/32UB,Information Technology,Telephone and Mobiles,04/04/2024,30011634,689.46 ,British Telecommunications Plc
Boston Borough Council,http://statistics.data.gov.uk/id/local-authority/32UB,Operations,Agency Staff,04/04/2024,30011432,"4,965.65 ",Comensura LTD
Boston Borough Council,http://statistics.data.gov.uk/id/local-authority/32UB,Operations,Business Rates,04/04/2024,30011426,"2,544.90 ",Boston Borough Council
Boston Borough Council,http://statistics.data.gov.uk/id/local-authority/32UB,Planning,Grants and Contributions to Outside Bodies - No Service Received,04/04/2024,30011407,"3,825.00 ",Lincolnshire Wildlife Trust
Boston Borough Council,http://statistics.data.gov.uk/id/local-authority/32UB,Property Services,Business Rates,04/04/2024,30011427,"15,968.00 ",Boston Borough Council
Boston Borough Council,http://statistics.data.gov.uk/id/local-authority/32UB,Property Services,Business Rates,04/04/2024,30011428,"1,521.95 ",Boston Borough Council
Boston Borough Council,http://statistics.data.gov.uk/id/local-authority/32UB,Property Services,Business Rates,04/04/2024,30011430,"9,605.75 ",Boston Borough Council
Boston Borough Council,http://statistics.data.gov.uk/id/local-authority/32UB,Property Services,Business Rates,04/04/2024,30011431,"1,796.40 ",Boston Borough Council
Boston Borough Council,http://statistics.data.gov.uk/id/local-authority/32UB,Strategic Economic Development Projects,Professional and Contractors Fees,04/04/2024,30011537,"2,610.00 ",Park Avenue Recruitment
Boston Borough Council,http://statistics.data.gov.uk/id/local-authority/32UB,Strategic Economic Development Projects,Professional and Contractors Fees,04/04/2024,30011557,"2,349.00 ",Park Avenue Recruitment
Boston Borough Council,http://statistics.data.gov.uk/id/local-authority/32UB,Town Centre,Business Rates,04/04/2024,30011427,"15,968.00 ",Boston Borough Council
Boston Borough Council,http://statistics.data.gov.uk/id/local-authority/32UB,Finance,Postages,08/04/2024,30011936,505.58 ,imail
Boston Borough Council,http://statistics.data.gov.uk/id/local-authority/32UB,Operations,Fuel and Oil,08/04/2024,30011633,"6,036.43 ",Fuelcard Services Ltd
Boston Borough Council,http://statistics.data.gov.uk/id/local-authority/32UB,Bereavement,Business Rates,09/04/2024,30011429,"29,757.00 ",Boston Borough Council
Boston Borough Council,http://statistics.data.gov.uk/id/local-authority/32UB,Bereavement,Computer Software Licence Costs,09/04/2024,30011605,"1,874.80 ",Clear Skies Software LTD
Boston Borough Council,http://statistics.data.gov.uk/id/local-authority/32UB,Bereavement,Other agencies,09/04/2024,30011583,"25,370.00 ",Crematoria Abatement of Mercury Emissions Organisation LTD
Boston Borough Council,http://statistics.data.gov.uk/id/local-authority/32UB,BTAC,Grants and Contributions to Outside Bodies - No Service Received,09/04/2024,30011612,"1,000.00 ",BOSTON WOMENS AID
Boston Borough Council,http://statistics.data.gov.uk/id/local-authority/32UB,BTAC,Grants and Contributions to Outside Bodies - No Service Received,09/04/2024,30011614,"1,000.00 ",Citizens Advice Mid Lincolnshire
Boston Borough Council,http://statistics.data.gov.uk/id/local-authority/32UB,BTAC,Grants and Contributions to Outside Bodies - No Service Received,09/04/2024,30011615,"1,000.00 ",Centenary Methodist Church
Boston Borough Council,http://statistics.data.gov.uk/id/local-authority/32UB,BTAC,Performers and Entertainers Fees,09/04/2024,30011601,413.70 ,Earthbound Misfits Ltd
Boston Borough Council,http://statistics.data.gov.uk/id/local-authority/32UB,Climate Change,Other Private Contractors,09/04/2024,30011412,"32,000.00 ",Lincolnshire County Council
Boston Borough Council,http://statistics.data.gov.uk/id/local-authority/32UB,Communities,Grants and Contributions to Outside Bodies - No Service Received,09/04/2024,30011542,"12,837.14 ",Willanna LTD T/A Andrew Wrisdale Building Contractors
Boston Borough Council,http://statistics.data.gov.uk/id/local-authority/32UB,Communities,Grants and Contributions to Outside Bodies - No Service Received,09/04/2024,30011543,"4,416.89 ",R G Carter Lincoln Ltd
Boston Borough Council,http://statistics.data.gov.uk/id/local-authority/32UB,Communities,Other Miscellaneous Expenses,09/04/2024,30011606,230.00 ,AGS Support
Boston Borough Council,http://statistics.data.gov.uk/id/local-authority/32UB,Communities,Other Miscellaneous Expenses,09/04/2024,30011622,596.51 ,Withey Carpets Ltd T/A United Carpets
Boston Borough Council,http://statistics.data.gov.uk/id/local-authority/32UB,Council Tax & Benefits,Computer Software Licence Costs,09/04/2024,30011470,"8,393.00 ",Capita Business Services Ltd
Boston Borough Council,http://statistics.data.gov.uk/id/local-authority/32UB,Council Tax & Benefits,Computer Software Licence Costs,09/04/2024,30011471,"44,115.91 ",Capita Business Services Ltd
Boston Borough Council,http://statistics.data.gov.uk/id/local-authority/32UB,Credit Control,Computer Software Licence Costs,09/04/2024,30011590,"4,500.00 ",Inform CPI LTD
Boston Borough Council,http://statistics.data.gov.uk/id/local-authority/32UB,"Democratic, Civic & Electoral Services",Agency Staff,09/04/2024,30011544,"4,520.00 ",Amanda Dickinson Consultancy
Boston Borough Council,http://statistics.data.gov.uk/id/local-authority/32UB,Finance,Staff Recruitment,09/04/2024,30011578,256.70 ,East Lindsey District Council
Boston Borough Council,http://statistics.data.gov.uk/id/local-authority/32UB,Finance,Staff Recruitment,09/04/2024,30011592,875.00 ,Spacehouse Ltd
Boston Borough Council,http://statistics.data.gov.uk/id/local-authority/32UB,Finance,Staff Recruitment,09/04/2024,30011642,"1,000.00 ",Hemming Group Ltd
Boston Borough Council,http://statistics.data.gov.uk/id/local-authority/32UB,Information Technology,Computer Software Licence Costs,09/04/2024,30011444,"5,093.17 ",GGP Systems
Boston Borough Council,http://statistics.data.gov.uk/id/local-authority/32UB,Legal Services,Legal Fees,09/04/2024,30011403,"15,643.47 ",Lincolnshire County Council
Boston Borough Council,http://statistics.data.gov.uk/id/local-authority/32UB,Operations,Maintenance,09/04/2024,30011579,"5,520.00 ",Peter Smith Commercials LTD
Boston Borough Council,http://statistics.data.gov.uk/id/local-authority/32UB,Operations,Maintenance,09/04/2024,30011580,"5,720.00 ",Peter Smith Commercials LTD
Boston Borough Council,http://statistics.data.gov.uk/id/local-authority/32UB,Operations,Materials and Consumables,09/04/2024,30011398,875.00 ,BM Arboriculture & Garden Care
Boston Borough Council,http://statistics.data.gov.uk/id/local-authority/32UB,Operations,Other Private Contractors,09/04/2024,30011521,240.00 ,SG Services (Boston) LTD
Boston Borough Council,http://statistics.data.gov.uk/id/local-authority/32UB,Operations,Other Private Contractors,09/04/2024,30011641,575.00 ,Healthguard LTD
Boston Borough Council,http://statistics.data.gov.uk/id/local-authority/32UB,Strategic Growth & Development,Grants and Contributions to Outside Bodies - No Service Received,09/04/2024,30011572,"3,976.59 ",Fold Hill Foods Ltd
Boston Borough Council,http://statistics.data.gov.uk/id/local-authority/32UB,Business Transformation,Postages,11/04/2024,30011575,398.98 ,Royal Mail
Boston Borough Council,http://statistics.data.gov.uk/id/local-authority/32UB,Communities,Grants and Contributions to Outside Bodies - No Service Received,11/04/2024,30011646,"11,500.00 ",Restore Church Boston
Boston Borough Council,http://statistics.data.gov.uk/id/local-authority/32UB,Communities,Other Miscellaneous Expenses,11/04/2024,30011668,"2,555.17 ",Benington Community Heritage Trust
Boston Borough Council,http://statistics.data.gov.uk/id/local-authority/32UB,Communities,Other Private Contractors,11/04/2024,30011683,372.50 ,Princebuild LTD
Boston Borough Council,http://statistics.data.gov.uk/id/local-authority/32UB,Economic Development,Purchase of Buildings,11/04/2024,30011930,"180,000.00 ",Freeths LLP
Boston Borough Council,http://statistics.data.gov.uk/id/local-authority/32UB,Finance,Shared Management,11/04/2024,30011535,"134,222.35 ",South Holland District Council
Boston Borough Council,http://statistics.data.gov.uk/id/local-authority/32UB,Finance,Shared Management,11/04/2024,30011620,"195,112.42 ",South Holland District Council
Boston Borough Council,http://statistics.data.gov.uk/id/local-authority/32UB,Finance,ST Debtors HB Overpayments Control Account,11/04/2024,30011673,475.45 ,�Personal Information Redacted�
Boston Borough Council,http://statistics.data.gov.uk/id/local-authority/32UB,Finance,Staff Recruitment,11/04/2024,30011621,"3,710.00 ",MDC Advisory Ltd
Boston Borough Council,http://statistics.data.gov.uk/id/local-authority/32UB,Human Resources,Other Miscellaneous Expenses,11/04/2024,30011586,"1,102.62 ",Public Sector Partnership Services LTD
Boston Borough Council,http://statistics.data.gov.uk/id/local-authority/32UB,Information Technology,Other Miscellaneous Expenses,11/04/2024,30011591,"6,346.93 ",Public Sector Partnership Services LTD
Boston Borough Council,http://statistics.data.gov.uk/id/local-authority/32UB,Operations,Agency Staff,11/04/2024,30011573,"7,266.60 ",Comensura LTD
Boston Borough Council,http://statistics.data.gov.uk/id/local-authority/32UB,Operations,Maintenance,11/04/2024,30011216,"4,026.95 ",Specialist Fleet Services LTD
Boston Borough Council,http://statistics.data.gov.uk/id/local-authority/32UB,Operations,Materials and Consumables,11/04/2024,30011667,721.40 ,ESPO
Boston Borough Council,http://statistics.data.gov.uk/id/local-authority/32UB,Operations,Other Private Contractors,11/04/2024,30011569,240.00 ,SG Services (Boston) LTD
Boston Borough Council,http://statistics.data.gov.uk/id/local-authority/32UB,Operations,Stationery,11/04/2024,30011667,26.05 ,ESPO
Boston Borough Council,http://statistics.data.gov.uk/id/local-authority/32UB,Planning,Planning Application Fees,11/04/2024,30011576,285.00 ,Planning Portal Quest LTD
Boston Borough Council,http://statistics.data.gov.uk/id/local-authority/32UB,Property Services,Business Rates,11/04/2024,30011486,"3,343.30 ",Boston Borough Council
Boston Borough Council,http://statistics.data.gov.uk/id/local-authority/32UB,Property Services,Business Rates,11/04/2024,30011487,"1,497.00 ",Boston Borough Council
Boston Borough Council,http://statistics.data.gov.uk/id/local-authority/32UB,Property Services,Business Rates,11/04/2024,30011488,"2,195.60 ",Boston Borough Council
Boston Borough Council,http://statistics.data.gov.uk/id/local-authority/32UB,Property Services,Professional and Contractors Fees,11/04/2024,30011670,"2,736.00 ",Freeths LLP
Boston Borough Council,http://statistics.data.gov.uk/id/local-authority/32UB,Strategic Economic Development Projects,Professional and Contractors Fees,11/04/2024,30011647,"2,349.00 ",Park Avenue Recruitment
Boston Borough Council,http://statistics.data.gov.uk/id/local-authority/32UB,Strategic Economic Development Projects,Professional and Contractors Fees,11/04/2024,30011648,"2,479.50 ",Park Avenue Recruitment
Boston Borough Council,http://statistics.data.gov.uk/id/local-authority/32UB,Bereavement,Gas,12/04/2024,30011952,"5,809.12 ",Espo Gas and Electricity
Boston Borough Council,http://statistics.data.gov.uk/id/local-authority/32UB,Bereavement,Gas,12/04/2024,30011953,"1,254.94 ",Espo Gas and Electricity
Boston Borough Council,http://statistics.data.gov.uk/id/local-authority/32UB,Communities,Gas,12/04/2024,30011948,481.87 ,Espo Gas and Electricity
Boston Borough Council,http://statistics.data.gov.uk/id/local-authority/32UB,Communities,Gas,12/04/2024,30011949,477.92 ,Espo Gas and Electricity
Boston Borough Council,http://statistics.data.gov.uk/id/local-authority/32UB,Heritage,Gas,12/04/2024,30011950,"2,845.81 ",Espo Gas and Electricity
Boston Borough Council,http://statistics.data.gov.uk/id/local-authority/32UB,Property Services,Gas,12/04/2024,30011951,"3,392.01 ",Espo Gas and Electricity
Boston Borough Council,http://statistics.data.gov.uk/id/local-authority/32UB,Finance,Postages,15/04/2024,30011937,514.20 ,imail
Boston Borough Council,http://statistics.data.gov.uk/id/local-authority/32UB,Operations,Fuel and Oil,15/04/2024,30011934,"6,107.33 ",Fuelcard Services Ltd
Boston Borough Council,http://statistics.data.gov.uk/id/local-authority/32UB,Operations,Fuel and Oil,15/04/2024,30011935,348.75 ,Fuelcard Services Ltd
Boston Borough Council,http://statistics.data.gov.uk/id/local-authority/32UB,BTAC,Grants and Contributions to Outside Bodies - No Service Received,16/04/2024,30011613,"1,000.00 ",Boston Hanse Group
Boston Borough Council,http://statistics.data.gov.uk/id/local-authority/32UB,Climate Change,Shared Management,16/04/2024,30011808,"8,066.92 ",East Lindsey District Council
Boston Borough Council,http://statistics.data.gov.uk/id/local-authority/32UB,Communities,Grants and Contributions to Outside Bodies - No Service Received,16/04/2024,30011651,"5,198.93 ",Dolphin Mobility East Midlands LTD
Boston Borough Council,http://statistics.data.gov.uk/id/local-authority/32UB,Communities,Grants and Contributions to Outside Bodies - No Service Received,16/04/2024,30011652,"7,851.55 ",Sibjon Builders
Boston Borough Council,http://statistics.data.gov.uk/id/local-authority/32UB,Communities,Grants and Contributions to Outside Bodies - No Service Received,16/04/2024,30011676,745.00 ,R A Joinery
Boston Borough Council,http://statistics.data.gov.uk/id/local-authority/32UB,Communities,Grants and Contributions to Outside Bodies - No Service Received,16/04/2024,30011677,"3,065.00 ",Dolphin Mobility East Midlands LTD
Boston Borough Council,http://statistics.data.gov.uk/id/local-authority/32UB,Communities,Grants and Contributions to Outside Bodies - No Service Received,16/04/2024,30011738,"2,367.02 ",Dolphin Mobility East Midlands LTD
Boston Borough Council,http://statistics.data.gov.uk/id/local-authority/32UB,Communities,Other Income,16/04/2024,30011669,426.85 ,Boston Borough Council
Boston Borough Council,http://statistics.data.gov.uk/id/local-authority/32UB,Communities,Rent Payments,16/04/2024,30011698,"1,267.50 ",Lincolnshire Housing Partnership
Boston Borough Council,http://statistics.data.gov.uk/id/local-authority/32UB,Council Tax & Benefits,External Printing and Design Costs,16/04/2024,30011618,944.00 ,Public Sector Partnership Services LTD
Boston Borough Council,http://statistics.data.gov.uk/id/local-authority/32UB,Economic Development,Equipment Lease Payments (Less than 12 months),16/04/2024,30011741,215.00 ,EventPro Solutions Limited
Boston Borough Council,http://statistics.data.gov.uk/id/local-authority/32UB,Economic Development,External Printing and Design Costs,16/04/2024,30011618,784.00 ,Public Sector Partnership Services LTD
Boston Borough Council,http://statistics.data.gov.uk/id/local-authority/32UB,Economic Development,Other Miscellaneous Expenses,16/04/2024,30011741,43.00 ,EventPro Solutions Limited
Boston Borough Council,http://statistics.data.gov.uk/id/local-authority/32UB,Economic Development,Professional and Contractors Fees,16/04/2024,30010809,"2,000.00 ",Amion Consulting
Boston Borough Council,http://statistics.data.gov.uk/id/local-authority/32UB,Economic Development,Professional Fees,16/04/2024,30011931,"9,594.00 ",Freeths LLP
Boston Borough Council,http://statistics.data.gov.uk/id/local-authority/32UB,Economic Development,Purchase of Buildings,16/04/2024,30011931,"2,080,004.26 ",Freeths LLP
Boston Borough Council,http://statistics.data.gov.uk/id/local-authority/32UB,Environmental Health,Other Private Contractors,16/04/2024,30011539,238.22 ,UK Health Security Agency
Boston Borough Council,http://statistics.data.gov.uk/id/local-authority/32UB,Human Resources,PSPS Non-Base Contract Costs,16/04/2024,30011627,"6,624.23 ",Public Sector Partnership Services LTD
Boston Borough Council,http://statistics.data.gov.uk/id/local-authority/32UB,Information Technology,Internal Printing,16/04/2024,30011619,"22,241.02 ",Public Sector Partnership Services LTD
Boston Borough Council,http://statistics.data.gov.uk/id/local-authority/32UB,Information Technology,Telephone and Mobiles,16/04/2024,30011638,"3,708.83 ",Public Sector Partnership Services LTD
Boston Borough Council,http://statistics.data.gov.uk/id/local-authority/32UB,Operations,Other Miscellaneous Expenses,16/04/2024,30011397,290.00 ,SG Services (Boston) LTD
Boston Borough Council,http://statistics.data.gov.uk/id/local-authority/32UB,Operations,Other Private Contractors,16/04/2024,30011733,"7,550.00 ",Enfortis Limited
Boston Borough Council,http://statistics.data.gov.uk/id/local-authority/32UB,Planning,Other Private Contractors,16/04/2024,30011763,"15,683.71 ",Heritage Trust of Lincolnshire LTD
Boston Borough Council,http://statistics.data.gov.uk/id/local-authority/32UB,Strategic Growth & Development,Grants and Contributions to Outside Bodies - No Service Received,16/04/2024,30011736,"5,310.00 ",Boston Anorak Co Ltd
Boston Borough Council,http://statistics.data.gov.uk/id/local-authority/32UB,Strategic Growth & Development,Grants and Contributions to Outside Bodies - No Service Received,16/04/2024,30011799,"9,317.00 ",Steadfast Training Ltd
Boston Borough Council,http://statistics.data.gov.uk/id/local-authority/32UB,Townscape Heritage,Other Miscellaneous Expenses,16/04/2024,30011448,"3,435.00 ",IS Consultancy (UK) LTD T/A Is Group
Boston Borough Council,http://statistics.data.gov.uk/id/local-authority/32UB,BTAC,Grants and Contributions to Outside Bodies - No Service Received,18/04/2024,30011685,"1,000.00 ",Boston Men's Shed
Boston Borough Council,http://statistics.data.gov.uk/id/local-authority/32UB,BTAC,Materials and Consumables,18/04/2024,30011344,974.70 ,ESPO
Boston Borough Council,http://statistics.data.gov.uk/id/local-authority/32UB,Business Transformation,Postages,18/04/2024,30011730,266.93 ,Royal Mail
Boston Borough Council,http://statistics.data.gov.uk/id/local-authority/32UB,Communities,Agency Staff,18/04/2024,30011545,"1,739.90 ",Vivid Resourcing
Boston Borough Council,http://statistics.data.gov.uk/id/local-authority/32UB,Communities,Other Miscellaneous Expenses,18/04/2024,30011687,"5,390.10 ",Lincolnshire County Council
Boston Borough Council,http://statistics.data.gov.uk/id/local-authority/32UB,Communities,Professional and Contractors Fees,18/04/2024,30011772,"37,890.59 ",South Holland District Council
Boston Borough Council,http://statistics.data.gov.uk/id/local-authority/32UB,Finance,Subscriptions to Organisations and Other Bodies,18/04/2024,30011932,"6,585.51 ",Local Government Association
Boston Borough Council,http://statistics.data.gov.uk/id/local-authority/32UB,Operations,Agency Staff,18/04/2024,30011684,"7,072.96 ",Comensura LTD
Boston Borough Council,http://statistics.data.gov.uk/id/local-authority/32UB,Operations,Materials and Consumables,18/04/2024,30011343,579.10 ,ESPO
Boston Borough Council,http://statistics.data.gov.uk/id/local-authority/32UB,Operations,Materials and Consumables,18/04/2024,30011832,289.66 ,Bunzl Cleaning and Hygiene Supplies
Boston Borough Council,http://statistics.data.gov.uk/id/local-authority/32UB,Property Services,Materials and Consumables,18/04/2024,30011343,579.10 ,ESPO
Boston Borough Council,http://statistics.data.gov.uk/id/local-authority/32UB,Property Services,Materials and Consumables,18/04/2024,30011344,974.70 ,ESPO
Boston Borough Council,http://statistics.data.gov.uk/id/local-authority/32UB,Property Services,Materials and Consumables,18/04/2024,30011832,289.66 ,Bunzl Cleaning and Hygiene Supplies
Boston Borough Council,http://statistics.data.gov.uk/id/local-authority/32UB,Property Services,Other Miscellaneous Expenses,18/04/2024,30011300,760.00 ,SG Services (Boston) LTD
Boston Borough Council,http://statistics.data.gov.uk/id/local-authority/32UB,Strategic Economic Development Projects,Professional Fees,18/04/2024,30011806,"8,850.00 ",University of Lincoln
Boston Borough Council,http://statistics.data.gov.uk/id/local-authority/32UB,Strategic Growth & Development,Grants and Contributions to Outside Bodies - No Service Received,18/04/2024,30011743,"12,441.00 ",BEAM UP Ltd
Boston Borough Council,http://statistics.data.gov.uk/id/local-authority/32UB,Strategic Growth & Development,Grants and Contributions to Outside Bodies - No Service Received,18/04/2024,30011801,"50,000.00 ",Heritage Trust of Lincolnshire LTD
Boston Borough Council,http://statistics.data.gov.uk/id/local-authority/32UB,Council Tax & Benefits,Business Rates - Share of Income Lincolnshire County Council,19/04/2024,30012096,"208,324.30 ",Lincolnshire County Council
Boston Borough Council,http://statistics.data.gov.uk/id/local-authority/32UB,Council Tax & Benefits,Council Tax Precept - Lincolnshire County Council,19/04/2024,30012096,"3,176,119.15 ",Lincolnshire County Council
Boston Borough Council,http://statistics.data.gov.uk/id/local-authority/32UB,Council Tax & Benefits,Council Tax Precept - Lincolnshire Police,19/04/2024,30012095,"612,010.04 ",Police and Crime Commissioner For Lincolnshire
Boston Borough Council,http://statistics.data.gov.uk/id/local-authority/32UB,Finance,Business Rates - Share of Income Lincolnshire County Council,19/04/2024,30012096,"208,324.30 ",Lincolnshire County Council
Boston Borough Council,http://statistics.data.gov.uk/id/local-authority/32UB,Finance,Council Tax Precept - Lincolnshire County Council,19/04/2024,30012096,"3,176,119.15 ",Lincolnshire County Council
Boston Borough Council,http://statistics.data.gov.uk/id/local-authority/32UB,Finance,Council Tax Precept - Lincolnshire Police,19/04/2024,30012095,"612,010.04 ",Police and Crime Commissioner For Lincolnshire
Boston Borough Council,http://statistics.data.gov.uk/id/local-authority/32UB,Land Charges & Licencing,Professional and Contractors Fees,19/04/2024,30011933,912.00 ,Disclosure and Barring Service
Boston Borough Council,http://statistics.data.gov.uk/id/local-authority/32UB,Finance,Banking Charges,22/04/2024,30012063,772.33 ,Bottomline
Boston Borough Council,http://statistics.data.gov.uk/id/local-authority/32UB,Finance,Electricity,22/04/2024,30012102,"48,006.91 ",TotalEnergies
Boston Borough Council,http://statistics.data.gov.uk/id/local-authority/32UB,Finance,Postages,22/04/2024,30012069,544.55 ,imail
Boston Borough Council,http://statistics.data.gov.uk/id/local-authority/32UB,Operations,Fuel and Oil,22/04/2024,30012067,"5,899.94 ",Fuelcard Services Ltd
Boston Borough Council,http://statistics.data.gov.uk/id/local-authority/32UB,Bereavement,Furniture and Equipment,23/04/2024,30011914,"1,219.08 ",Matthews Environmental Solutions LTD
Boston Borough Council,http://statistics.data.gov.uk/id/local-authority/32UB,Bereavement,Purchase Of Goods For Resale,23/04/2024,30011455,460.00 ,The Yaboo Co LTD (Wesley Media)
Boston Borough Council,http://statistics.data.gov.uk/id/local-authority/32UB,Bereavement,Purchase Of Goods For Resale,23/04/2024,30011456,360.00 ,The Yaboo Co LTD (Wesley Media)
Boston Borough Council,http://statistics.data.gov.uk/id/local-authority/32UB,BTAC,Grants and Contributions to Outside Bodies - No Service Received,23/04/2024,30011767,"1,000.00 ",Boston Original Bands Initiative
Boston Borough Council,http://statistics.data.gov.uk/id/local-authority/32UB,Communities,Bed and Breakfast Accommodation (Homelessness Service),23/04/2024,30011863,540.00 ,Fairfield Guest House
Boston Borough Council,http://statistics.data.gov.uk/id/local-authority/32UB,Communities,Bed and Breakfast Accommodation (Homelessness Service),23/04/2024,30011864,439.15 ,Smart Move (Boston) LTD
Boston Borough Council,http://statistics.data.gov.uk/id/local-authority/32UB,Communities,Bed and Breakfast Accommodation (Homelessness Service),23/04/2024,30011865,360.00 ,Smart Move (Boston) LTD
Boston Borough Council,http://statistics.data.gov.uk/id/local-authority/32UB,Communities,Bed and Breakfast Accommodation (Homelessness Service),23/04/2024,30011868,770.00 ,The Lord Grey Hotel t/a The Lord Grey Ltd
Boston Borough Council,http://statistics.data.gov.uk/id/local-authority/32UB,Communities,Bed and Breakfast Accommodation (Homelessness Service),23/04/2024,30011869,637.47 ,Smart Move (Boston) LTD
Boston Borough Council,http://statistics.data.gov.uk/id/local-authority/32UB,Communities,Bed and Breakfast Accommodation (Homelessness Service),23/04/2024,30011870,509.98 ,Smart Move (Boston) LTD
Boston Borough Council,http://statistics.data.gov.uk/id/local-authority/32UB,Communities,Bed and Breakfast Accommodation (Homelessness Service),23/04/2024,30011871,350.00 ,Smart Move (Boston) LTD
Boston Borough Council,http://statistics.data.gov.uk/id/local-authority/32UB,Communities,Bed and Breakfast Accommodation (Homelessness Service),23/04/2024,30011872,260.00 ,Smart Move (Boston) LTD
Boston Borough Council,http://statistics.data.gov.uk/id/local-authority/32UB,Communities,Bed and Breakfast Accommodation (Homelessness Service),23/04/2024,30011911,"1,374.11 ",Smart Move (Boston) LTD
Boston Borough Council,http://statistics.data.gov.uk/id/local-authority/32UB,Communities,Grants and Contributions to Outside Bodies - No Service Received,23/04/2024,30011729,"6,598.45 ",Lincolnshire Bathrooms And Wetrooms
Boston Borough Council,http://statistics.data.gov.uk/id/local-authority/32UB,Communities,Grants and Contributions to Outside Bodies - No Service Received,23/04/2024,30011833,"5,187.16 ",R A Joinery
Boston Borough Council,http://statistics.data.gov.uk/id/local-authority/32UB,Communities,Grants and Contributions to Outside Bodies - No Service Received,23/04/2024,30011849,"6,882.74 ",Princebuild LTD
Boston Borough Council,http://statistics.data.gov.uk/id/local-authority/32UB,Communities,Grants and Contributions to Outside Bodies - No Service Received,23/04/2024,30011850,"5,755.00 ",Obam Lift Services LTD
Boston Borough Council,http://statistics.data.gov.uk/id/local-authority/32UB,Communities,Grants and Contributions to Outside Bodies - No Service Received,23/04/2024,30011851,"3,349.00 ",Obam Lift Services LTD
Boston Borough Council,http://statistics.data.gov.uk/id/local-authority/32UB,Communities,Other Communication Costs,23/04/2024,30011588,"16,569.89 ",BT Redcare
Boston Borough Council,http://statistics.data.gov.uk/id/local-authority/32UB,Communities,Other Miscellaneous Expenses,23/04/2024,30011577,294.50 ,thebigword
Boston Borough Council,http://statistics.data.gov.uk/id/local-authority/32UB,Communities,Other Miscellaneous Expenses,23/04/2024,30011912,955.40 ,Fairfield Guest House
Boston Borough Council,http://statistics.data.gov.uk/id/local-authority/32UB,Economic Development,Professional Fees,23/04/2024,30011788,"7,500.00 ",Eddisons
Boston Borough Council,http://statistics.data.gov.uk/id/local-authority/32UB,Environmental Health,Grants and Contributions to Outside Bodies - No Service Received,23/04/2024,30011759,"1,520.00 ",F E Addlesee and Son LTD
Boston Borough Council,http://statistics.data.gov.uk/id/local-authority/32UB,Finance,ST Debtors HB Overpayments Control Account,23/04/2024,30011903,475.45 ,�Personal Information Redacted�
Boston Borough Council,http://statistics.data.gov.uk/id/local-authority/32UB,Information Technology,Computer Hardware Maintenance,23/04/2024,30011734,"6,375.00 ",East Lindsey District Council
Boston Borough Council,http://statistics.data.gov.uk/id/local-authority/32UB,Information Technology,Computer Hardware Maintenance,23/04/2024,30011739,"6,375.00 ",South Holland District Council
Boston Borough Council,http://statistics.data.gov.uk/id/local-authority/32UB,Information Technology,Computer Software Licence Costs,23/04/2024,30011451,"24,965.30 ",Civica UK LTD
Boston Borough Council,http://statistics.data.gov.uk/id/local-authority/32UB,Information Technology,Computer Software Licence Costs,23/04/2024,30011737,"21,167.00 ",Public Sector Partnership Services LTD
Boston Borough Council,http://statistics.data.gov.uk/id/local-authority/32UB,Operations,Advertising - Legal And Public,23/04/2024,30011770,"2,512.00 ",Public Sector Partnership Services LTD
Boston Borough Council,http://statistics.data.gov.uk/id/local-authority/32UB,Operations,Furniture and Equipment,23/04/2024,30011571,281.67 ,Portable offices (Hire) LTD
Boston Borough Council,http://statistics.data.gov.uk/id/local-authority/32UB,Operations,Maintenance,23/04/2024,30010782,291.68 ,Specialist Fleet Services LTD
Boston Borough Council,http://statistics.data.gov.uk/id/local-authority/32UB,Operations,Maintenance,23/04/2024,30010851,232.87 ,Specialist Fleet Services LTD
Boston Borough Council,http://statistics.data.gov.uk/id/local-authority/32UB,Operations,Maintenance,23/04/2024,30011120,431.83 ,Specialist Fleet Services LTD
Boston Borough Council,http://statistics.data.gov.uk/id/local-authority/32UB,Operations,Materials and Consumables,23/04/2024,30011414,300.00 ,MCP Environmental LLP
Boston Borough Council,http://statistics.data.gov.uk/id/local-authority/32UB,Operations,Materials and Consumables,23/04/2024,30011703,225.00 ,The Boston Sign Company
Boston Borough Council,http://statistics.data.gov.uk/id/local-authority/32UB,Operations,Tyres,23/04/2024,30011762,"2,856.07 ",BA Bush and Son LTD
Boston Borough Council,http://statistics.data.gov.uk/id/local-authority/32UB,Property Services,Buildings Maintenance - Programmed,23/04/2024,30011421,522.50 ,Glen Farrow UK LTD
Boston Borough Council,http://statistics.data.gov.uk/id/local-authority/32UB,Property Services,Buildings Maintenance - Programmed,23/04/2024,30011423,528.00 ,Adcock Refrigeration and Air Conditioning LTD
Boston Borough Council,http://statistics.data.gov.uk/id/local-authority/32UB,Property Services,Other Private Contractors,23/04/2024,30011546,"1,198.39 ",Kings Armoured Security Services LTD
Boston Borough Council,http://statistics.data.gov.uk/id/local-authority/32UB,Property Services,Professional and Contractors Fees,23/04/2024,30011555,362.08 ,Chipside LTD
Boston Borough Council,http://statistics.data.gov.uk/id/local-authority/32UB,Property Services,Professional and Contractors Fees,23/04/2024,30011560,"1,458.24 ",IPS (UK) Ltd
Boston Borough Council,http://statistics.data.gov.uk/id/local-authority/32UB,Strategic Economic Development Projects,Professional and Contractors Fees,23/04/2024,30011827,"1,100.00 ",The Engaging People Company
Boston Borough Council,http://statistics.data.gov.uk/id/local-authority/32UB,Strategic Economic Development Projects,Professional and Contractors Fees,23/04/2024,30011874,"2,088.00 ",Park Avenue Recruitment
Boston Borough Council,http://statistics.data.gov.uk/id/local-authority/32UB,Strategic Economic Development Projects,Professional and Contractors Fees,23/04/2024,30011909,"1,827.00 ",Park Avenue Recruitment
Boston Borough Council,http://statistics.data.gov.uk/id/local-authority/32UB,Strategic Economic Development Projects,Professional and Contractors Fees,23/04/2024,30011910,550.00 ,The Engaging People Company
Boston Borough Council,http://statistics.data.gov.uk/id/local-authority/32UB,Strategic Growth & Development,Grants and Contributions to Outside Bodies - No Service Received,23/04/2024,30011740,"2,415.00 ",Boston Lithuanian Community
Boston Borough Council,http://statistics.data.gov.uk/id/local-authority/32UB,Strategic Growth & Development,Professional Fees,23/04/2024,30011603,500.00 ,Capsticks Solicitors LLP
Boston Borough Council,http://statistics.data.gov.uk/id/local-authority/32UB,Town Centre,Other Miscellaneous Expenses,23/04/2024,30011704,550.00 ,The Boston Sign Company
Boston Borough Council,http://statistics.data.gov.uk/id/local-authority/32UB,Townscape Heritage,Other Miscellaneous Expenses,23/04/2024,30011744,"10,831.66 ",Heritage Trust of Lincolnshire LTD
Boston Borough Council,http://statistics.data.gov.uk/id/local-authority/32UB,Property Services,Water and Sewerage Charges,24/04/2024,30012065,"6,874.04 ",Wave
Boston Borough Council,http://statistics.data.gov.uk/id/local-authority/32UB,Business Transformation,Postages,25/04/2024,30011731,"1,247.26 ",Royal Mail
Boston Borough Council,http://statistics.data.gov.uk/id/local-authority/32UB,Communities,Bed and Breakfast Accommodation (Homelessness Service),25/04/2024,30011857,360.00 ,Smart Move (Boston) LTD
Boston Borough Council,http://statistics.data.gov.uk/id/local-authority/32UB,Communities,Bed and Breakfast Accommodation (Homelessness Service),25/04/2024,30011944,"1,040.00 ",Fairfield Guest House
Boston Borough Council,http://statistics.data.gov.uk/id/local-authority/32UB,Communities,Grants and Contributions to Outside Bodies - No Service Received,25/04/2024,30011981,"5,353.45 ",Warics LTD
Boston Borough Council,http://statistics.data.gov.uk/id/local-authority/32UB,Credit Control,Subscriptions to Organisations and Other Bodies,25/04/2024,30011653,"2,000.00 ",Tameside Metropolitan Borough
Boston Borough Council,http://statistics.data.gov.uk/id/local-authority/32UB,Finance,PSPS Non-Base Contract Costs,25/04/2024,30011587,"29,741.41 ",Public Sector Partnership Services LTD
Boston Borough Council,http://statistics.data.gov.uk/id/local-authority/32UB,Finance,Subscriptions to Organisations and Other Bodies,25/04/2024,30011653,"2,000.00 ",Tameside Metropolitan Borough
Boston Borough Council,http://statistics.data.gov.uk/id/local-authority/32UB,Information Technology,Professional and Contractors Fees,25/04/2024,30011923,"1,488.16 ",Matrix Network Services LTD
Boston Borough Council,http://statistics.data.gov.uk/id/local-authority/32UB,Information Technology,PSPS Non-Base Contract Costs,25/04/2024,30011875,"11,056.00 ",Public Sector Partnership Services LTD
Boston Borough Council,http://statistics.data.gov.uk/id/local-authority/32UB,Operations,Agency Staff,25/04/2024,30011834,"6,648.88 ",Comensura LTD
Boston Borough Council,http://statistics.data.gov.uk/id/local-authority/32UB,Operations,Agency Staff,25/04/2024,30011990,"5,228.20 ",Comensura LTD
Boston Borough Council,http://statistics.data.gov.uk/id/local-authority/32UB,Operations,Other Private Contractors,25/04/2024,30011877,"3,375.00 ",LA Support LTD
Boston Borough Council,http://statistics.data.gov.uk/id/local-authority/32UB,Operations,Other Private Contractors,25/04/2024,30011878,"6,255.00 ",LA Support LTD
Boston Borough Council,http://statistics.data.gov.uk/id/local-authority/32UB,Operations,Other Private Contractors,25/04/2024,30011879,"6,367.50 ",LA Support LTD
Boston Borough Council,http://statistics.data.gov.uk/id/local-authority/32UB,Operations,Other Private Contractors,25/04/2024,30011880,"6,313.50 ",LA Support LTD
Boston Borough Council,http://statistics.data.gov.uk/id/local-authority/32UB,Operations,Other Private Contractors,25/04/2024,30011881,"8,086.50 ",LA Support LTD
Boston Borough Council,http://statistics.data.gov.uk/id/local-authority/32UB,Operations,Other Private Contractors,25/04/2024,30011882,"4,725.00 ",LA Support LTD
Boston Borough Council,http://statistics.data.gov.uk/id/local-authority/32UB,Planning,Professional and Contractors Fees,25/04/2024,30011538,"2,100.00 ",CP Viability LTD
Boston Borough Council,http://statistics.data.gov.uk/id/local-authority/32UB,Property Services,Buildings Maintenance - Programmed,25/04/2024,30011876,473.00 ,Public Sector Partnership Services LTD
Boston Borough Council,http://statistics.data.gov.uk/id/local-authority/32UB,Strategic Economic Development Projects,Professional and Contractors Fees,25/04/2024,30011866,"2,610.00 ",Park Avenue Recruitment
Boston Borough Council,http://statistics.data.gov.uk/id/local-authority/32UB,Strategic Growth & Development,Professional Fees,25/04/2024,30011943,"4,875.00 ",Focus Consultants 2010 LLP
Boston Borough Council,http://statistics.data.gov.uk/id/local-authority/32UB,Credit Control,Banking Charges,26/04/2024,30012064,"5,260.62 ",Pay360 LTD
Boston Borough Council,http://statistics.data.gov.uk/id/local-authority/32UB,Economic Development,Other Miscellaneous Expenses,26/04/2024,30012020,"1,176.00 ",Global Experience Specialist (GES) Ltd
Boston Borough Council,http://statistics.data.gov.uk/id/local-authority/32UB,BTAC,Equipment Lease Payments (Less than 12 months),30/04/2024,30011908,"5,085.00 ",ALS Group
Boston Borough Council,http://statistics.data.gov.uk/id/local-authority/32UB,Communities,Agency Staff,30/04/2024,30011582,"1,600.20 ",Vivid Resourcing
Boston Borough Council,http://statistics.data.gov.uk/id/local-authority/32UB,Communities,Bed and Breakfast Accommodation (Homelessness Service),30/04/2024,30012056,330.00 ,The Lord Grey Hotel t/a The Lord Grey Ltd
Boston Borough Council,http://statistics.data.gov.uk/id/local-authority/32UB,Communities,Business Rates,30/04/2024,30012006,"1,452.90 ",Boston Borough Council
Boston Borough Council,http://statistics.data.gov.uk/id/local-authority/32UB,Communities,Business Rates,30/04/2024,30012021,"1,452.90 ",Boston Borough Council
Boston Borough Council,http://statistics.data.gov.uk/id/local-authority/32UB,Communities,Grants and Contributions to Outside Bodies - No Service Received,30/04/2024,30012003,"5,894.49 ",D Hatcher and Sons LTD
Boston Borough Council,http://statistics.data.gov.uk/id/local-authority/32UB,Communities,Grants and Contributions to Outside Bodies - No Service Received,30/04/2024,30012004,"5,495.78 ",�Personal Information Redacted�
Boston Borough Council,http://statistics.data.gov.uk/id/local-authority/32UB,Communities,Grants and Contributions to Outside Bodies - No Service Received,30/04/2024,30012046,"1,249.87 ",Oakley Estates
Boston Borough Council,http://statistics.data.gov.uk/id/local-authority/32UB,"Democratic, Civic & Electoral Services",Professional and Contractors Fees,30/04/2024,30011567,490.00 ,Chase Services Group
Boston Borough Council,http://statistics.data.gov.uk/id/local-authority/32UB,"Democratic, Civic & Electoral Services",Professional and Contractors Fees,30/04/2024,30011616,"1,914.73 ",Association of Electoral Administrators
Boston Borough Council,http://statistics.data.gov.uk/id/local-authority/32UB,Economic Development,Works to Buildings (Main Contractor),30/04/2024,30011995,"70,794.88 ",John Ling & Son
Boston Borough Council,http://statistics.data.gov.uk/id/local-authority/32UB,Finance,Professional and Contractors Fees,30/04/2024,30012039,"2,810.42 ",The Risk Factor LTD
Boston Borough Council,http://statistics.data.gov.uk/id/local-authority/32UB,Finance,Professional and Contractors Fees,30/04/2024,30012041,"2,644.17 ",The Risk Factor LTD
Boston Borough Council,http://statistics.data.gov.uk/id/local-authority/32UB,Finance,Subscriptions to Organisations and Other Bodies,30/04/2024,30011570,"2,199.49 ",West Devon Borough Council
Boston Borough Council,http://statistics.data.gov.uk/id/local-authority/32UB,Operations,Clothing Uniforms And Laundry,30/04/2024,30011602,282.60 ,SMI Group
Boston Borough Council,http://statistics.data.gov.uk/id/local-authority/32UB,Operations,Clothing Uniforms And Laundry,30/04/2024,30011608,"1,056.13 ",SMI Group
Boston Borough Council,http://statistics.data.gov.uk/id/local-authority/32UB,Operations,Maintenance,30/04/2024,30011218,366.13 ,Specialist Fleet Services LTD
Boston Borough Council,http://statistics.data.gov.uk/id/local-authority/32UB,Operations,Maintenance,30/04/2024,30012000,"28,212.54 ",Specialist Fleet Services LTD
Boston Borough Council,http://statistics.data.gov.uk/id/local-authority/32UB,Operations,Other Private Contractors,30/04/2024,30012015,"7,400.00 ",Enfortis Limited
Boston Borough Council,http://statistics.data.gov.uk/id/local-authority/32UB,Operations,Vehicle Hire,30/04/2024,30011992,"2,310.00 ",SFS t/a Collett Transport Services
Boston Borough Council,http://statistics.data.gov.uk/id/local-authority/32UB,Planning,Planning Application Fees,30/04/2024,30011581,293.00 ,Planning Portal Quest LTD
Boston Borough Council,http://statistics.data.gov.uk/id/local-authority/32UB,Planning,Planning Application Fees,30/04/2024,30011584,413.00 ,Planning Portal Quest LTD
Boston Borough Council,http://statistics.data.gov.uk/id/local-authority/32UB,Planning,Staff Training Expenses (Non-Payroll),30/04/2024,30012053,900.00 ,East Lindsey District Council
Boston Borough Council,http://statistics.data.gov.uk/id/local-authority/32UB,Property Services,Agency Staff,30/04/2024,30011566,534.45 ,Chase Services Group
Boston Borough Council,http://statistics.data.gov.uk/id/local-authority/32UB,Property Services,Agency Staff,30/04/2024,30011568,"7,559.98 ",Chase Services Group
Boston Borough Council,http://statistics.data.gov.uk/id/local-authority/32UB,Property Services,Buildings Maintenance - Programmed,30/04/2024,30011419,"2,215.00 ",Adcock Refrigeration and Air Conditioning LTD
Boston Borough Council,http://statistics.data.gov.uk/id/local-authority/32UB,Property Services,Buildings Maintenance - Programmed,30/04/2024,30011519,452.00 ,Adcock Refrigeration and Air Conditioning LTD
Boston Borough Council,http://statistics.data.gov.uk/id/local-authority/32UB,Property Services,Buildings Maintenance - Programmed,30/04/2024,30011522,538.14 ,Glen Farrow UK LTD
Boston Borough Council,http://statistics.data.gov.uk/id/local-authority/32UB,Property Services,Buildings Maintenance - Programmed,30/04/2024,30011523,990.90 ,Glen Farrow UK LTD
Boston Borough Council,http://statistics.data.gov.uk/id/local-authority/32UB,Property Services,Buildings Maintenance - Programmed,30/04/2024,30011524,229.30 ,Healthguard LTD
Boston Borough Council,http://statistics.data.gov.uk/id/local-authority/32UB,Property Services,Buildings Maintenance - Programmed,30/04/2024,30011554,270.50 ,GB Security Group
Boston Borough Council,http://statistics.data.gov.uk/id/local-authority/32UB,Property Services,Buildings Maintenance - Programmed,30/04/2024,30011655,"2,903.57 ",Glen Farrow UK LTD
Boston Borough Council,http://statistics.data.gov.uk/id/local-authority/32UB,Property Services,Buildings Maintenance - Programmed,30/04/2024,30011742,584.00 ,Periam and Williamson Ltd
Boston Borough Council,http://statistics.data.gov.uk/id/local-authority/32UB,Property Services,Buildings Maintenance - Programmed,30/04/2024,30011745,"1,629.26 ",Nerg
Boston Borough Council,http://statistics.data.gov.uk/id/local-authority/32UB,Property Services,Buildings Maintenance - Programmed,30/04/2024,30011746,"1,370.00 ",Glen Farrow UK LTD
Boston Borough Council,http://statistics.data.gov.uk/id/local-authority/32UB,Property Services,Buildings Maintenance - Programmed,30/04/2024,30011757,525.00 ,The Boston Sign Company
Boston Borough Council,http://statistics.data.gov.uk/id/local-authority/32UB,Property Services,Buildings Maintenance - Programmed,30/04/2024,30011789,380.00 ,Glen Farrow UK LTD
Boston Borough Council,http://statistics.data.gov.uk/id/local-authority/32UB,Property Services,Buildings Maintenance - Programmed,30/04/2024,30011815,285.69 ,Glen Farrow UK LTD
Boston Borough Council,http://statistics.data.gov.uk/id/local-authority/32UB,Property Services,Buildings Maintenance - Programmed,30/04/2024,30011817,226.73 ,Glen Farrow UK LTD
Boston Borough Council,http://statistics.data.gov.uk/id/local-authority/32UB,Property Services,Buildings Maintenance - Programmed,30/04/2024,30011819,335.00 ,Glen Farrow UK LTD
Boston Borough Council,http://statistics.data.gov.uk/id/local-authority/32UB,Property Services,Buildings Maintenance - Programmed,30/04/2024,30011820,325.00 ,Glen Farrow UK LTD
Boston Borough Council,http://statistics.data.gov.uk/id/local-authority/32UB,Property Services,Buildings Maintenance - Programmed,30/04/2024,30011835,593.85 ,Nerg
Boston Borough Council,http://statistics.data.gov.uk/id/local-authority/32UB,Property Services,Buildings Maintenance - Programmed,30/04/2024,30011855,285.00 ,Glen Farrow UK LTD
Boston Borough Council,http://statistics.data.gov.uk/id/local-authority/32UB,Property Services,Buildings Maintenance - Programmed,30/04/2024,30011856,720.00 ,Glen Farrow UK LTD
Boston Borough Council,http://statistics.data.gov.uk/id/local-authority/32UB,Property Services,Buildings Maintenance - Programmed,30/04/2024,30011862,601.00 ,Integrated Water Services LTD
Boston Borough Council,http://statistics.data.gov.uk/id/local-authority/32UB,Property Services,Buildings Maintenance - Programmed,30/04/2024,30011971,257.67 ,Gelder Construction
Boston Borough Council,http://statistics.data.gov.uk/id/local-authority/32UB,Property Services,Conference and Seminars,30/04/2024,30011913,345.00 ,NMTF Ltd
Boston Borough Council,http://statistics.data.gov.uk/id/local-authority/32UB,Property Services,Gas,30/04/2024,30011516,"1,205.90 ",Calor Gas LTD
Boston Borough Council,http://statistics.data.gov.uk/id/local-authority/32UB,Property Services,Gas,30/04/2024,30011813,"5,789.92 ",Calor Gas LTD
Boston Borough Council,http://statistics.data.gov.uk/id/local-authority/32UB,Strategic Economic Development Projects,Professional and Contractors Fees,30/04/2024,30012055,"2,610.00 ",Park Avenue Recruitment
Boston Borough Council,http://statistics.data.gov.uk/id/local-authority/32UB,Strategic Growth & Development,Grants and Contributions to Outside Bodies - No Service Received,30/04/2024,30011854,"17,175.88 ",Destination Lincolnshire Community Interest Company
Boston Borough Council,http://statistics.data.gov.uk/id/local-authority/32UB,Strategic Growth & Development,Professional Fees,30/04/2024,30011604,734.93 ,Capsticks Solicitors LLP
Boston Borough Council,http://statistics.data.gov.uk/id/local-authority/32UB,Town Centre,Conference and Seminars,30/04/2024,30011913,345.00 ,NMTF Ltd
Boston Borough Council,http://statistics.data.gov.uk/id/local-authority/32UB,Town Centre,Other Miscellaneous Expenses,30/04/2024,30011559,"7,463.00 ",Allied Medical Group Ltd
